bitfinex-derivatives/quotes_BTCF0:USTF0_20251207
["timestamp","ask_amount","ask_price","bid_price","bid_amount"]
[1765116827976,0.06895,88912.0,88911.0,0.04010745]
[1765116828272,0.06895,88912.0,88910.0,0.00016871]
[1765116828273,0.05751,88911.0,88910.0,0.00016871]
[1765116828472,0.41831,88911.0,88910.0,0.00016871]
[1765116829878,0.42031,88911.0,88910.0,0.00016871]
[1765116831079,0.42431,88911.0,88910.0,0.00016871]
[1765116831882,0.42531,88911.0,88910.0,0.00016871]
[1765116832680,0.42031,88911.0,88910.0,0.00016871]
[1765116832884,0.42431,88911.0,88910.0,0.00016871]
[1765116834977,0.42031,88911.0,88910.0,0.00016871]
[1765116835281,0.42431,88911.0,88910.0,0.00016871]
[1765116841194,0.94715,88911.0,88910.0,0.00016871]
[1765116842586,0.0821585,88893.0,88892.0,0.03338606]
[1765116842787,0.4429585,88893.0,88892.0,0.03338606]
[1765116843383,0.46663818,88893.0,88892.0,0.03338606]
[1765116843791,0.46663818,88893.0,88892.0,0.03438606]
[1765116844389,0.47163818,88893.0,88892.0,0.03438606]
[1765116845393,0.4479585,88893.0,88892.0,0.06191606]
[1765116845794,0.4479585,88893.0,88892.0,0.03438606]
[1765116846687,0.47161697,88893.0,88892.0,0.03438606]
[1765116846887,0.4479585,88893.0,88892.0,0.06191606]
[1765116847091,0.4479585,88893.0,88892.0,0.03438606]
[1765116848098,0.9152785,88893.0,88892.0,0.03438606]
[1765116849398,0.9152785,88893.0,88892.0,0.06191606]
[1765116849896,0.9152785,88893.0,88892.0,0.03438606]
[1765116850299,0.4479585,88893.0,88892.0,0.06191606]
[1765116850491,0.9151985,88893.0,88892.0,0.06191606]
[1765116850893,0.9151985,88893.0,88892.0,0.08957606]
[1765116851498,0.9708385,88893.0,88892.0,0.08957606]
[1765116852990,0.4360185,88893.0,88892.0,0.08957606]
[1765116854596,0.4522785,88893.0,88892.0,0.08957606]
[1765116855001,0.4522785,88893.0,88892.0,0.03438606]
[1765116855204,0.4522785,88893.0,88892.0,0.06149606]
[1765116855502,0.4522785,88893.0,88892.0,0.03438606]
[1765116867710,0.4522785,88893.0,88886.0,0.00028126]
[1765116867711,0.0679493,88887.0,88886.0,0.00028126]
[1765116867904,0.5907093,88887.0,88886.0,0.00028126]
[1765116869112,0.5927093,88887.0,88886.0,0.00028126]
[1765116869308,0.5927093,88887.0,88863.0,1.5]
[1765116869309,0.0679523,88863.0,88856.0,0.04030376]
[1765116869521,0.0679523,88863.0,88846.0,0.36108139]
[1765116869522,0.5907123,88863.0,88854.0,0.41822376]
[1765116869913,0.5907123,88863.0,88854.0,0.37792]
[1765116870511,0.5907123,88863.0,88862.0,0.05693461]
[1765116871217,0.5947123,88863.0,88862.0,0.00013461]
[1765116871717,0.5947123,88863.0,88862.0,0.00113461]
[1765116872214,0.0719523,88863.0,88862.0,0.00113461]
[1765116872424,0.5947523,88863.0,88862.0,0.00013461]
[1765116872804,0.0567,88849.0,88848.0,0.017]
[1765116873003,0.0567,88849.0,88848.0,0.0738]
[1765116873818,0.05681116,88849.0,88848.0,0.0738]
[1765116874313,0.06181116,88849.0,88848.0,0.0738]
[1765116874616,0.06181116,88849.0,88848.0,0.0568]
[1765116875509,0.06281116,88849.0,88848.0,0.0568]
[1765116875909,0.06281116,88849.0,88848.0,0.07392]
[1765116876209,0.0567,88847.0,88846.0,0.05708139]
[1765116876818,0.00611116,88849.0,88848.0,0.07392]
[1765116877317,0.00111116,88849.0,88848.0,0.07392]
[1765116878118,0.00011116,88849.0,88848.0,0.07392]
[1765116879006,0.00711116,88849.0,88848.0,0.07392]
[1765116880416,0.00016871,88871.0,88866.0,0.0568]
[1765116880618,0.0112516,88870.0,88866.0,0.0568]
[1765116881115,0.00016871,88871.0,88866.0,0.0568]
[1765116881918,0.3648,88867.0,88866.0,0.0568]
[1765116882721,0.3648,88867.0,88866.0,0.0588]
[1765116882908,0.3608,88867.0,88866.0,0.0588]
[1765116883113,0.42325,88867.0,88866.0,0.0588]
[1765116883521,0.41825,88867.0,88866.0,0.0588]
[1765116883719,0.42325,88867.0,88866.0,0.0588]
[1765116883916,0.3658,88867.0,88866.0,0.0588]
[1765116884219,0.3658,88867.0,88866.0,0.0568]
[1765116884417,0.3658,88867.0,88866.0,0.0598]
[1765116885218,0.3608,88867.0,88866.0,0.0588]
[1765116885520,0.3648,88867.0,88866.0,0.0588]
[1765116885822,0.3608,88867.0,88866.0,0.0588]
[1765116886021,0.3658,88867.0,88866.0,0.0588]
[1765116886222,0.42357,88867.0,88866.0,0.0588]
[1765116887427,0.42357,88867.0,88866.0,0.002]
[1765116887924,0.05777,88859.0,88858.0,0.0712]
[1765116889125,0.05777,88859.0,88858.0,0.05647]
[1765116889632,0.06177,88859.0,88858.0,0.05647]
[1765116889818,0.004,88859.0,88858.0,0.07269]
[1765116891018,0.03236,88859.0,88858.0,0.07469]
[1765116891826,0.06177,88859.0,88858.0,0.07469]
[1765116892532,0.06177,88859.0,88858.0,0.05847]
[1765116893131,0.06177,88859.0,88858.0,0.07469]
[1765116895433,0.06177,88859.0,88858.0,0.05847]
[1765116897336,0.08554775,88859.0,88858.0,0.05847]
[1765116900936,0.08554775,88859.0,88858.0,0.002]
[1765116901133,0.08554775,88859.0,88858.0,0.06142]
[1765116901134,0.02777775,88859.0,88858.0,0.06142]
[1765116901730,0.05557775,88859.0,88858.0,0.06142]
[1765116902136,0.08419775,88859.0,88858.0,0.06142]
[1765116902331,0.08419775,88859.0,88858.0,0.03197]
[1765116902540,0.44499775,88859.0,88858.0,0.002]
[1765116905545,0.44499775,88859.0,88858.0,0.03197]
[1765116905746,0.44499775,88859.0,88858.0,0.06142]
[1765116906839,0.44499775,88859.0,88858.0,0.002]
[1765116909058,0.44499775,88859.0,88858.0,0.06142]
[1765116910163,0.41637775,88859.0,88858.0,0.06142]
[1765116910551,0.38857775,88859.0,88858.0,0.06142]
[1765116910750,0.38457819,88859.0,88858.0,0.05942]
[1765116910957,0.38857819,88859.0,88858.0,0.06042]
[1765116911557,0.02777819,88859.0,88858.0,0.06042]
[1765116911759,0.02777819,88859.0,88858.0,0.05942]
[1765116911955,0.02777819,88859.0,88858.0,0.06042]
[1765116912456,0.05557819,88859.0,88858.0,0.06042]
[1765116913562,0.05157819,88859.0,88858.0,0.06042]
[1765116913862,0.05557819,88859.0,88858.0,0.06042]
[1765116914059,0.02777819,88859.0,88858.0,0.06042]
[1765116914261,0.06050057,88880.0,88870.0,0.0555]
[1765116914451,0.02390698,88879.0,88870.0,0.0555]
[1765116914651,0.02407569,88871.0,88870.0,0.0555]
[1765116915165,0.08145569,88871.0,88870.0,0.0555]
[1765116915661,0.08245569,88871.0,88870.0,0.0555]
[1765116916462,0.00516871,88871.0,88870.0,0.0585]
[1765116917262,0.3608,88884.0,88883.0,0.0555]
[1765116917465,0.38469868,88884.0,88883.0,0.0555]
[1765116917666,0.02389868,88884.0,88883.0,0.0555]
[1765116918062,0.3608,88892.0,88891.0,0.0667488]
[1765116918261,0.38470017,88892.0,88891.0,0.0667488]
[1765116918658,0.41333017,88892.0,88891.0,0.0667488]
[1765116918861,0.38470017,88892.0,88891.0,0.0667488]
[1765116919058,0.3608,88892.0,88891.0,0.0667488]
[1765116919263,0.36096881,88900.0,88899.0,0.0667478]
[1765116919763,0.00016881,88900.0,88899.0,0.0667478]
[1765116920659,0.00416881,88900.0,88899.0,0.0767478]
[1765116920860,0.00416881,88900.0,88899.0,0.4385478]
[1765116921971,0.41818,88917.0,88916.0,0.0555]
[1765116922170,0.44200735,88917.0,88916.0,0.0555]
[1765116922370,0.41818,88917.0,88916.0,0.0555]
[1765116922966,0.3608,88917.0,88916.0,0.0555]
[1765116923165,0.3618,88917.0,88916.0,0.0555]
[1765116923373,0.3658,88917.0,88916.0,0.0685]
[1765116923671,0.42318,88917.0,88916.0,0.0685]
[1765116925062,0.42318,88917.0,88916.0,0.013]
[1765116925364,0.05738,88909.0,88908.0,0.00016871]
[1765116925566,0.41818,88909.0,88908.0,0.00016871]
[1765116926467,0.41818,88909.0,88908.0,0.05566871]
[1765116926671,0.42218,88909.0,88908.0,0.07566871]
[1765116928078,0.3648,88909.0,88908.0,0.07566871]
[1765116928371,0.004,88909.0,88908.0,0.07566871]
[1765116929368,0.03263,88909.0,88908.0,0.07566871]
[1765116930462,0.06138,88909.0,88908.0,0.07566871]
[1765116931470,0.004,88909.0,88908.0,0.07566871]
[1765116932775,0.03263,88909.0,88908.0,0.07566871]
[1765116933072,0.004,88909.0,88908.0,0.07566871]
[1765116934674,0.03263,88909.0,88908.0,0.07566871]
[1765116934874,0.004,88909.0,88908.0,0.07566871]
[1765116937067,0.05754871,88925.0,88924.0,0.0274]
[1765116937276,0.05754871,88925.0,88924.0,0.0555]
[1765116937783,0.05738,88917.0,88916.0,0.4163]
[1765116939570,0.05838,88917.0,88916.0,0.4163]
[1765116939777,0.06238,88917.0,88916.0,0.4183]
[1765116940793,0.08618842,88917.0,88916.0,0.002]
[1765116942673,0.06238,88917.0,88916.0,0.002]
[1765116944882,0.0736255,88917.0,88916.0,0.002]
[1765116946885,0.05625,88909.0,88908.0,0.00016871]
[1765116947085,0.41705,88909.0,88908.0,0.00016871]
[1765116947288,0.4282965,88909.0,88908.0,0.00016871]
[1765116948300,0.49276536,88909.0,88908.0,0.00316871]
[1765116949285,0.48882192,88909.0,88908.0,0.00016871]
[1765116949488,0.49282192,88909.0,88908.0,0.00316871]
[1765116952584,0.4322965,88909.0,88908.0,0.00316871]
[1765116956695,0.49279796,88909.0,88908.0,0.00316871]
[1765116957389,0.05595,88883.0,88882.0,0.05916]
[1765116957596,0.05595,88875.0,88874.0,0.05916]
[1765116958494,0.06111871,88883.0,88882.0,0.06116]
[1765116958683,0.00516871,88883.0,88882.0,0.06116]
[1765116959090,0.00116871,88883.0,88882.0,0.05916]
[1765116959689,0.3608,88897.0,88882.0,0.05916]
[1765116959690,0.3608,88897.0,88896.0,0.05916]
[1765116961097,0.05595,88897.0,88896.0,0.05916]
[1765116961293,0.0281,88897.0,88896.0,0.05916]
[1765116961499,0.0281,88897.0,88896.0,0.06116]
[1765116961888,0.00016871,88905.0,88900.0,0.0112476]
[1765116962093,0.05611871,88905.0,88904.0,0.05916]
[1765116963995,0.05611871,88905.0,88904.0,0.06016]
[1765116964196,0.06011871,88905.0,88904.0,0.06016]
[1765116964491,0.00416871,88905.0,88904.0,0.06016]
[1765116966503,0.06011871,88905.0,88904.0,0.06016]
[1765116966896,0.03226871,88905.0,88904.0,0.06016]
[1765116967100,0.00416871,88905.0,88904.0,0.06016]
[1765116969595,0.3608,88916.0,88915.0,0.05916]
[1765116970008,0.41675,88916.0,88915.0,0.05916]
[1765116970906,0.42075,88916.0,88915.0,0.05916]
[1765116971096,0.05595,88908.0,88907.0,0.05932871]
[1765116971296,0.05595,88908.0,88907.0,0.02992871]
[1765116971606,0.05595,88908.0,88907.0,0.00016871]
[1765116972491,0.05995,88908.0,88907.0,0.00016871]
[1765116973692,0.05595,88908.0,88907.0,0.00016871]
[1765116974006,0.05995,88908.0,88907.0,0.00316871]
[1765116975710,0.05995,88908.0,88907.0,0.03075871]
[1765116976005,0.05995,88908.0,88907.0,0.00316871]
[1765116979200,0.42075,88908.0,88907.0,0.00316871]
[1765116980707,0.42075,88908.0,88907.0,0.06026871]
[1765116988403,0.43731,88908.0,88907.0,0.00316871]
[1765116988904,0.42075,88908.0,88907.0,0.06026871]
[1765116989499,0.42075,88908.0,88907.0,0.07726871]
[1765116991306,0.05995,88908.0,88907.0,0.07726871]
[1765116991713,0.004,88908.0,88907.0,0.07726871]
[1765116999121,0.05715871,88924.0,88923.0,0.0571]
[1765117000119,0.05699,88915.0,88914.0,0.0741]
[1765117000826,0.05699,88915.0,88914.0,0.0571]
[1765117001123,0.05699,88915.0,88914.0,0.02759]
[1765117001919,0.06099,88915.0,88914.0,0.003]
[1765117002619,0.06199,88915.0,88914.0,0.003]
[1765117004324,0.07116,88908.0,88907.0,0.00016871]
[1765117004724,0.07116,88908.0,88907.0,0.02804871]
[1765117005614,0.07116,88908.0,88907.0,0.05542871]
[1765117006014,0.07116,88908.0,88907.0,0.00016871]
[1765117006324,0.07116,88908.0,88907.0,0.02804871]
[1765117006617,0.07516,88908.0,88907.0,0.03504871]
[1765117006818,0.07516,88908.0,88907.0,0.00716871]
[1765117007420,0.43596,88908.0,88907.0,0.00716871]
[1765117007725,0.43596,88908.0,88888.0,0.04027774]
[1765117007726,0.05533,88893.0,88888.0,0.04027774]
[1765117007915,0.05533,88893.0,88884.0,0.017]
[1765117008111,0.05533,88886.0,88881.0,0.04027774]
[1765117008326,0.05533,88886.0,88879.0,0.04027774]
[1765117008513,0.05533,88886.0,88885.0,0.41606]
[1765117009122,0.0112485,88893.0,88885.0,0.41606]
[1765117009311,0.02827871,88894.0,88893.0,0.07168]
[1765117009515,0.00016871,88894.0,88893.0,0.07168]
[1765117009823,0.02827871,88894.0,88893.0,0.07168]
[1765117010023,0.05549871,88894.0,88893.0,0.07168]
[1765117010630,0.00016871,88894.0,88893.0,0.43248]
[1765117010818,0.00416871,88894.0,88893.0,0.43248]
[1765117011719,0.03227871,88894.0,88893.0,0.43248]
[1765117011920,0.03227871,88894.0,88893.0,0.07168]
[1765117012228,0.05949871,88894.0,88893.0,0.07268]
[1765117012528,0.06049871,88894.0,88893.0,0.07268]
[1765117012726,0.06049871,88894.0,88893.0,0.07168]
[1765117012922,0.06049871,88894.0,88893.0,0.07268]
[1765117013126,0.06049871,88894.0,88893.0,0.05626]
[1765117013421,0.06049871,88894.0,88893.0,0.07268]
[1765117013624,0.00516871,88894.0,88893.0,0.07268]
[1765117014128,0.03327871,88894.0,88893.0,0.07268]
[1765117014427,0.06049871,88894.0,88893.0,0.07268]
[1765117015128,0.06049871,88894.0,88893.0,0.07168]
[1765117015525,0.03327871,88894.0,88893.0,0.07168]
[1765117015920,0.03327871,88894.0,88893.0,0.07268]
[1765117016427,0.00516871,88894.0,88893.0,0.07268]
[1765117016628,0.00516871,88894.0,88893.0,0.07168]
[1765117016829,0.00516871,88894.0,88893.0,0.43348]
[1765117017331,0.00016871,88894.0,88893.0,0.43348]
[1765117017532,0.00516871,88894.0,88893.0,0.43348]
[1765117018231,0.00516871,88894.0,88893.0,0.43448]
[1765117019028,0.00516871,88894.0,88893.0,0.43548]
[1765117024235,0.06441871,88894.0,88893.0,0.3638]
[1765117024735,0.06441871,88894.0,88893.0,0.39229]
[1765117025028,0.06441871,88894.0,88893.0,0.42191]
[1765117025425,0.06441871,88894.0,88893.0,0.41991]
[1765117025620,0.05941871,88894.0,88893.0,0.41991]
[1765117025825,0.06441871,88894.0,88893.0,0.41991]
[1765117026328,0.06441871,88894.0,88893.0,0.3618]
[1765117026834,0.06441871,88894.0,88893.0,0.41991]
[1765117027223,0.06441871,88894.0,88893.0,0.3618]
[1765117027432,0.06441871,88894.0,88893.0,0.001]
[1765117028523,0.02997,88881.0,88880.0,0.0693601]
[1765117029936,0.03497,88881.0,88880.0,0.0693601]
[1765117030137,0.005,88881.0,88880.0,0.0693601]
[1765117031137,0.005,88881.0,88880.0,0.0703601]
[1765117031537,0.03497,88881.0,88880.0,0.0703601]
[1765117032537,0.03497,88881.0,88880.0,0.05911]
[1765117032839,0.06238,88881.0,88880.0,0.05911]
[1765117034241,0.06215424,88881.0,88880.0,0.05911]
[1765117036231,0.08604599,88881.0,88880.0,0.02949]
[1765117036832,0.08604599,88881.0,88880.0,0.05653]
[1765117037141,0.08627175,88881.0,88880.0,0.05653]
[1765117037736,0.08627175,88881.0,88880.0,0.05553]
[1765117038351,0.02889175,88881.0,88880.0,0.05553]
[1765117038538,0.005,88881.0,88880.0,0.05553]
[1765117038941,0.0662291,88889.0,88888.0,0.05683]
[1765117039133,0.07886836,88889.0,88888.0,0.05683]
[1765117039336,0.05145836,88889.0,88888.0,0.05683]
[1765117040043,0.05545836,88889.0,88888.0,0.05683]
[1765117040242,0.08386836,88889.0,88888.0,0.05683]
[1765117042436,0.05498,88879.0,88878.0,0.07478]
[1765117042941,0.0662304,88878.0,88877.0,0.00016871]
[1765117043138,0.0662304,88878.0,88877.0,0.02995871]
[1765117043540,0.0662304,88878.0,88877.0,0.05699871]
[1765117043845,0.09011333,88878.0,88877.0,0.05699871]
[1765117044446,0.09011333,88878.0,88877.0,0.00016871]
[1765117044839,0.09011333,88878.0,88877.0,0.02995871]
[1765117045036,0.09011333,88878.0,88877.0,0.00016871]
[1765117045442,0.09511333,88878.0,88877.0,0.00116871]
[1765117046146,0.09511333,88878.0,88877.0,0.03095871]
[1765117049247,0.09511333,88878.0,88877.0,0.05799871]
[1765117049642,0.02888293,88878.0,88877.0,0.05799871]
[1765117050642,0.05645293,88878.0,88877.0,0.05799871]
[1765117052351,0.02888293,88878.0,88877.0,0.05799871]
[1765117053144,0.05645293,88878.0,88877.0,0.05799871]
[1765117054548,0.08386293,88878.0,88877.0,0.05799871]
[1765117056051,0.10032293,88878.0,88877.0,0.00116871]
[1765117056357,0.05498,88869.0,88868.0,0.0001363]
[1765117056652,0.09011453,88869.0,88868.0,0.0001363]
[1765117057255,0.05498,88856.0,88855.0,0.41763]
[1765117057453,0.05514881,88864.0,88863.0,0.05683]
[1765117057759,0.0516032,88864.0,88863.0,0.05683]
[1765117057947,0.05498,88857.0,88856.0,0.05683]
[1765117058352,0.05509159,88857.0,88856.0,0.02979]
[1765117058657,0.05509159,88857.0,88856.0,0.05683]
[1765117059050,0.05509159,88857.0,88856.0,0.05883]
[1765117059250,0.05509159,88857.0,88856.0,0.0700832]
[1765117059750,0.02768159,88857.0,88856.0,0.0700832]
[1765117059949,0.02768159,88857.0,88856.0,0.05883]
[1765117060155,0.05509159,88857.0,88856.0,0.05883]
[1765117060558,0.06009159,88857.0,88856.0,0.05883]
[1765117060759,0.06009159,88857.0,88856.0,0.05783]
[1765117061158,0.00511159,88857.0,88856.0,0.05783]
[1765117061653,0.03268159,88857.0,88856.0,0.05783]
[1765117063057,0.06249159,88857.0,88856.0,0.05783]
[1765117064060,0.00511159,88857.0,88856.0,0.05783]
[1765117064650,0.03412159,88857.0,88856.0,0.05783]
[1765117065370,0.06393159,88857.0,88856.0,0.05783]
[1765117070161,0.00511159,88857.0,88856.0,0.0690832]
[1765117070357,0.06393159,88857.0,88856.0,0.0690832]
[1765117070859,0.03412159,88857.0,88856.0,0.0690832]
[1765117071058,0.00511159,88857.0,88856.0,0.0690832]
[1765117072663,0.03412159,88857.0,88856.0,0.05783]
[1765117072867,0.00511159,88857.0,88856.0,0.05783]
[1765117073964,0.03412159,88857.0,88856.0,0.05783]
[1765117074164,0.06393159,88857.0,88856.0,0.05783]
[1765117075871,0.03412159,88857.0,88856.0,0.05783]
[1765117076063,0.00511159,88857.0,88856.0,0.05783]
[1765117077061,0.06286159,88857.0,88856.0,0.05783]
[1765117077957,0.06286159,88857.0,88856.0,0.03079]
[1765117078162,0.06286159,88857.0,88856.0,0.001]
[1765117078364,0.08675323,88857.0,88856.0,0.001]
[1765117079659,0.02900323,88857.0,88847.0,0.05633881]
[1765117079870,0.05786159,88857.0,88856.0,0.05617]
[1765117080161,0.08675041,88857.0,88856.0,0.05617]
[1765117081267,0.02900041,88857.0,88856.0,0.05617]
[1765117081472,0.00511159,88857.0,88856.0,0.05617]
[1765117082462,0.06286159,88857.0,88856.0,0.05717]
[1765117082662,0.00511159,88857.0,88856.0,0.05717]
[1765117083665,0.00016881,88864.0,88863.0,0.05617]
[1765117083858,0.00016881,88864.0,88863.0,0.41697]
[1765117084361,0.00016881,88864.0,88863.0,0.4282223]
[1765117084864,0.0112501,88881.0,88863.0,0.4282223]
[1765117084865,0.0690001,88881.0,88880.0,0.05617]
[1765117085064,0.09290726,88881.0,88880.0,0.05617]
[1765117085664,0.02390716,88881.0,88880.0,0.05617]
[1765117086369,0.00016881,88889.0,88888.0,0.0674192]
[1765117086567,0.05791881,88889.0,88888.0,0.4282192]
[1765117086871,0.08181917,88889.0,88888.0,0.4282192]
[1765117087670,0.08681917,88889.0,88888.0,0.4282192]
[1765117087864,0.02906917,88889.0,88888.0,0.4282192]
[1765117088062,0.00516881,88889.0,88888.0,0.4282192]
[1765117088776,0.06691881,88889.0,88888.0,0.4282192]
[1765117089469,0.03745881,88889.0,88888.0,0.4282192]
[1765117089669,0.00916881,88889.0,88888.0,0.4282192]
[1765117089868,0.068997,88905.0,88904.0,0.05617]
[1765117090072,0.09286409,88905.0,88904.0,0.05617]
[1765117091173,0.05775,88898.0,88897.0,0.38809]
[1765117092072,0.05658,88897.0,88896.0,0.00016881]
[1765117092369,0.08042377,88897.0,88896.0,0.00016881]
[1765117092577,0.08042377,88897.0,88867.0,0.0112517]
[1765117092578,0.05658,88878.0,88877.0,0.3608]
[1765117093476,0.05658,88869.0,88868.0,0.41715]
[1765117093862,0.0678306,88877.0,88876.0,0.05635]
[1765117094063,0.05658,88869.0,88868.0,0.41715]
[1765117095775,0.05658,88869.0,88868.0,0.42015]
[1765117096079,0.06058,88869.0,88868.0,0.42915]
[1765117096478,0.004,88869.0,88868.0,0.42915]
[1765117097377,0.03172,88869.0,88868.0,0.42915]
[1765117097774,0.004,88869.0,88868.0,0.42915]
[1765117100492,0.06058,88869.0,88868.0,0.42915]
[1765117100680,0.06058,88869.0,88868.0,0.03923]
[1765117100982,0.06058,88869.0,88868.0,0.06835]
[1765117101179,0.08440968,88869.0,88868.0,0.06835]
[1765117103573,0.06058,88869.0,88868.0,0.012]
[1765117103884,0.08441082,88869.0,88868.0,0.012]
[1765117104785,0.05658,88861.0,88860.0,0.00016881]
[1765117105168,0.05658,88861.0,88860.0,0.02739881]
[1765117105782,0.05658,88861.0,88860.0,0.00016881]
[1765117105983,0.0678326,88861.0,88860.0,0.00016881]
[1765117106186,0.0688326,88861.0,88860.0,0.00016881]
[1765117106381,0.05658,88847.0,88846.0,0.00028139]
[1765117106580,0.0678343,88847.0,88846.0,0.02751139]
[1765117106774,0.0678343,88847.0,88846.0,0.05663139]
[1765117106975,0.05658,88847.0,88846.0,0.05663139]
[1765117107476,0.05658,88847.0,88846.0,0.02751139]
[1765117107985,0.05958,88847.0,88846.0,0.06163139]
[1765117108583,0.06158,88847.0,88846.0,0.06163139]
[1765117113374,0.005,88847.0,88846.0,0.06163139]
[1765117114292,0.06158,88847.0,88846.0,0.06163139]
[1765117117191,0.06158,88847.0,88846.0,0.00528139]
[1765117118289,0.06158,88847.0,88838.0,0.00016881]
[1765117118290,0.0678354,88839.0,88838.0,0.00016881]
[1765117118489,0.4286354,88839.0,88838.0,0.00016881]
[1765117118700,0.45244077,88839.0,88838.0,0.00016881]
[1765117119695,0.45244077,88839.0,88812.0,0.05644009]
[1765117119696,0.05658,88813.0,88812.0,0.05644009]
[1765117119897,0.05658,88813.0,88808.0,0.3608]
[1765117119898,0.07408,88809.0,88808.0,0.31463129]
[1765117120099,0.0485,88787.0,88782.0,0.06068189]
[1765117120395,0.0485,88767.0,88766.0,0.01168465]
[1765117120787,0.04858045,88767.0,88766.0,0.05663164]
[1765117121192,8.045e-05,88767.0,88766.0,0.05663164]
[1765117121690,0.00016892,88775.0,88774.0,0.05529]
[1765117122197,0.02441892,88775.0,88774.0,0.05529]
[1765117122491,0.00016892,88775.0,88774.0,0.05536]
[1765117122695,0.04866892,88775.0,88774.0,0.05536]
[1765117122996,0.00016892,88775.0,88774.0,0.05536]
[1765117123383,0.00416892,88775.0,88774.0,0.05536]
[1765117123991,0.05266892,88775.0,88774.0,0.05536]
[1765117124192,0.02841892,88775.0,88774.0,0.05536]
[1765117124393,0.05266892,88775.0,88774.0,0.0273]
[1765117124589,0.05266892,88775.0,88766.0,0.00028164]
[1765117124590,0.0485,88767.0,88766.0,0.00028164]
[1765117124787,0.0485,88767.0,88766.0,0.05564164]
[1765117125202,0.3608,88771.0,88770.0,0.07217]
[1765117125391,0.4093,88771.0,88770.0,0.07217]
[1765117126095,0.3608,88771.0,88770.0,0.07217]
[1765117126398,0.3608,88771.0,88766.0,0.05564164]
[1765117126585,0.38505,88771.0,88770.0,0.07217]
[1765117126885,0.3608,88771.0,88770.0,0.07217]
[1765117127296,0.4093,88771.0,88770.0,0.0273]
[1765117127601,0.3608,88771.0,88770.0,0.07317]
[1765117128192,0.3688,88771.0,88770.0,0.07317]
[1765117128493,0.4173,88771.0,88770.0,0.001]
[1765117128799,0.4173,88771.0,88770.0,0.07317]
[1765117129185,0.4173,88771.0,88770.0,0.001]
[1765117129389,0.4173,88771.0,88770.0,0.05636]
[1765117129798,0.4173,88771.0,88770.0,0.05536]
[1765117130004,0.3678,88771.0,88770.0,0.05636]
[1765117130503,0.4163,88771.0,88770.0,0.05636]
[1765117131103,0.4163,88771.0,88770.0,0.001]
[1765117131305,0.4163,88771.0,88770.0,0.0283]
[1765117131498,0.4163,88771.0,88770.0,0.05636]
[1765117131705,0.4093,88771.0,88770.0,0.05636]
[1765117132000,0.3678,88771.0,88770.0,0.05636]
[1765117132509,0.39205,88771.0,88770.0,0.05636]
[1765117132701,0.4163,88771.0,88770.0,0.05636]
[1765117133102,0.3678,88771.0,88770.0,0.05636]
[1765117134809,0.007,88771.0,88770.0,0.0676241]
[1765117134999,0.00016892,88775.0,88774.0,0.05663]
[1765117135303,0.02766892,88775.0,88774.0,0.05663]
[1765117135497,0.00016892,88775.0,88774.0,0.05663]
[1765117136108,0.00016892,88775.0,88774.0,0.05763]
[1765117136898,0.00816892,88775.0,88774.0,0.05763]
[1765117138000,0.3608,88785.0,88784.0,0.05663]
[1765117138201,0.0112614,88792.0,88791.0,0.05663]
[1765117138400,0.0112614,88792.0,88785.0,0.01726]
[1765117138401,0.0667808,88797.0,88796.0,0.02724]
[1765117138603,0.0667808,88797.0,88796.0,0.05663]
[1765117139101,0.05552,88789.0,88788.0,0.05679892]
[1765117139296,0.05552,88789.0,88788.0,0.02955892]
[1765117139610,0.05552,88789.0,88788.0,0.00016892]
[1765117140317,0.05552,88768.0,88767.0,0.07344]
[1765117141009,0.05552,88775.0,88774.0,0.05663]
[1765117141413,0.00016892,88783.0,88782.0,0.05663]
[1765117142611,0.00016892,88783.0,88782.0,0.41743]
[1765117142909,0.005,88789.0,88788.0,0.05663]
[1765117143103,0.0275,88801.0,88800.0,0.07389]
[1765117143302,0.3608,88802.0,88801.0,0.05663]
[1765117144417,0.00016892,88810.0,88809.0,0.05663]
[1765117144602,0.3608,88825.0,88824.0,0.05663]
[1765117145512,0.05552,88820.0,88819.0,0.05663]
[1765117146516,0.05552,88820.0,88819.0,0.05863]
[1765117146815,0.05552,88820.0,88819.0,0.002]
[1765117147005,0.08039818,88820.0,88819.0,0.002]
[1765117148112,0.05552,88817.0,88816.0,0.00016892]
[1765117148308,0.08039818,88817.0,88816.0,0.00016892]
[1765117149313,0.08039818,88817.0,88816.0,0.05679892]
[1765117149618,0.02487818,88817.0,88816.0,0.05679892]
[1765117149809,0.08439818,88817.0,88816.0,0.05879892]
[1765117150612,0.08439818,88817.0,88816.0,0.00216892]
[1765117151115,0.44519818,88817.0,88816.0,0.00216892]
[1765117151416,0.05552,88791.0,88790.0,0.07389]
[1765117151626,0.3608,88802.0,88801.0,0.05718]
[1765117151912,0.02492599,88802.0,88801.0,0.05718]
[1765117152214,0.0399786,88814.0,88813.0,0.05718]
[1765117152414,0.09269404,88814.0,88813.0,0.05718]
[1765117152716,0.05651,88811.0,88810.0,0.04702]
[1765117152910,0.05651,88811.0,88810.0,0.07473]
[1765117152911,0.08143544,88811.0,88810.0,0.07473]
[1765117153111,0.02492544,88811.0,88810.0,0.07473]
[1765117153313,0.3608,88817.0,88816.0,0.05718]
[1765117153504,0.02501234,88817.0,88816.0,0.05718]
[1765117153916,0.00016892,88822.0,88821.0,0.05718]
[1765117154420,0.05667892,88822.0,88821.0,0.02947]
[1765117154619,0.02518204,88822.0,88821.0,0.05718]
[1765117155112,0.05790204,88822.0,88821.0,0.05718]
[1765117155411,0.05790204,88822.0,88821.0,0.05818]
[1765117155715,0.08569204,88822.0,88821.0,0.05818]
[1765117156414,0.08569204,88822.0,88821.0,0.001]
[1765117156914,0.08569204,88822.0,88821.0,0.05818]
[1765117157113,0.02918204,88822.0,88821.0,0.05718]
[1765117157312,0.02918204,88822.0,88821.0,0.05818]
[1765117157917,0.02918204,88822.0,88821.0,0.05718]
[1765117158119,0.02918204,88822.0,88821.0,0.05818]
[1765117158314,0.03018204,88822.0,88821.0,0.05818]
[1765117158524,0.08669204,88822.0,88821.0,0.05818]
[1765117158910,0.08669204,88822.0,88821.0,0.05918]
[1765117159309,0.03018204,88822.0,88821.0,0.05918]
[1765117159817,0.06167892,88822.0,88821.0,0.05918]
[1765117160024,0.05889185,88822.0,88821.0,0.05918]